[Event "Titled Tuesday Blitz May 16 Early 2023"]
[White "Durarbayli, Vasif"]
[Black "Lenderman, Aleksandr"]
[WhiteFideId "13402935"]
[BlackFideId "2021285"]
[WhiteElo "2551"]
[BlackElo "2607"]
[Result "0-1"]
[Round "09"]
[TimeControl "180+2"]
[Date "2023.05.16"]
[WhiteClock "0:00:03"]
[BlackClock "0:01:20"]

1. e4 {[%clk 0:03:00]}  e6 {[%clk 0:02:44]} 2. d4 {[%clk 0:03:00]}  d5 {[%clk 0:02:45]} 3. e5 {[%clk 0:03:01]}  c5 {[%clk 0:02:41]} 4. c3 {[%clk 0:03:01]}  Ne7 {[%clk 0:02:41]} 5. Bd3 {[%clk 0:02:56]}  cxd4 {[%clk 0:02:39]} 6. cxd4 {[%clk 0:02:55]}  Nec6 {[%clk 0:02:40]} 7. Ne2 {[%clk 0:02:54]}  Nb4 {[%clk 0:02:39]} 8. Bb5+ {[%clk 0:02:53]}  Bd7 {[%clk 0:02:39]} 9. Bxd7+ {[%clk 0:02:52]}  Qxd7 {[%clk 0:02:39]} 10. O-O {[%clk 0:02:52]}  Be7 {[%clk 0:02:40]} 11. Nbc3 {[%clk 0:02:52]}  O-O {[%clk 0:02:39]} 12. f4 {[%clk 0:02:52]}  N8c6 {[%clk 0:02:37]} 13. a3 {[%clk 0:02:29]}  Na6 {[%clk 0:02:37]} 14. b4 {[%clk 0:02:29]}  Nc7 {[%clk 0:02:37]} 15. Qd3 {[%clk 0:02:30]}  f5 {[%clk 0:02:36]} 16. Be3 {[%clk 0:02:13]}  b5 {[%clk 0:02:34]} 17. Rfc1 {[%clk 0:02:04]}  Rab8 {[%clk 0:02:27]} 18. Nb1 {[%clk 0:01:47]}  Rfc8 {[%clk 0:02:16]} 19. Ra2 {[%clk 0:01:32]}  Na8 {[%clk 0:01:54]} 20. Nd2 {[%clk 0:00:59]}  Nb6 {[%clk 0:01:52]} 21. Nb3 {[%clk 0:00:59]}  Nc4 {[%clk 0:01:52]} 22. Bd2 {[%clk 0:00:52]}  a5 {[%clk 0:01:44]} 23. Nc5 {[%clk 0:00:46]}  Bxc5 {[%clk 0:01:44]} 24. dxc5 {[%clk 0:00:47]}  Ra8 {[%clk 0:01:42]} 25. Raa1 {[%clk 0:00:41]}  d4 {[%clk 0:01:37]} 26. Be1 {[%clk 0:00:31]}  Qd5 {[%clk 0:01:33]} 27. a4 {[%clk 0:00:20]}  Ne3 {[%clk 0:01:26]} 28. Qxe3 {[%clk 0:00:04]}  dxe3 {[%clk 0:01:26]} 29. axb5 {[%clk 0:00:04]}  Nxb4 {[%clk 0:01:24]} 30. Bxb4 {[%clk 0:00:01]}  axb4 {[%clk 0:01:25]} 31. Rxa8 {[%clk 0:00:01]}  Rxa8 {[%clk 0:01:26]} 32. c6 {[%clk 0:00:02]}  Qxb5 {[%clk 0:01:20]} 33. Nd4 {[%clk 0:00:03]} 0-1


[Site "https://www.chess.com"]

[Event "Titled Tuesday Blitz May 16 Early 2023"]
[White "Van Foreest, Jorden"]
[Black "Nakamura, Hikaru"]
[WhiteFideId "1039784"]
[BlackFideId "2016192"]
[WhiteElo "2633"]
[BlackElo "2885"]
[Result "0-1"]
[Round "09"]
[TimeControl "180+2"]
[Date "2023.05.16"]
[WhiteClock "0:00:00"]
[BlackClock "0:00:06"]

1. e4 {[%clk 0:02:56]}  e5 {[%clk 0:02:57]} 2. Nf3 {[%clk 0:02:55]}  Nc6 {[%clk 0:02:57]} 3. Bc4 {[%clk 0:02:52]}  Nf6 {[%clk 0:02:57]} 4. d3 {[%clk 0:02:51]}  Bc5 {[%clk 0:02:57]} 5. Nc3 {[%clk 0:02:51]}  h6 {[%clk 0:02:57]} 6. Be3 {[%clk 0:02:46]}  Bb6 {[%clk 0:02:50]} 7. O-O {[%clk 0:02:41]}  d6 {[%clk 0:02:50]} 8. a4 {[%clk 0:02:37]}  O-O {[%clk 0:02:50]} 9. h3 {[%clk 0:02:35]}  Ba5 {[%clk 0:02:36]} 10. Bd2 {[%clk 0:02:20]}  Bxc3 {[%clk 0:02:28]} 11. bxc3 {[%clk 0:02:12]}  Be6 {[%clk 0:02:21]} 12. Bxe6 {[%clk 0:02:12]}  fxe6 {[%clk 0:02:22]} 13. a5 {[%clk 0:02:08]}  Qe8 {[%clk 0:02:16]} 14. c4 {[%clk 0:02:07]}  Qh5 {[%clk 0:02:02]} 15. Be3 {[%clk 0:01:56]}  Rf7 {[%clk 0:02:01]} 16. Nh2 {[%clk 0:01:22]}  Qg6 {[%clk 0:01:59]} 17. Nf3 {[%clk 0:01:22]}  Raf8 {[%clk 0:01:57]} 18. Bd2 {[%clk 0:01:19]}  Nxe4 {[%clk 0:01:50]} 19. Nh4 {[%clk 0:01:19]}  Qf6 {[%clk 0:01:50]} 20. dxe4 {[%clk 0:01:14]}  Qxh4 {[%clk 0:01:49]} 21. f3 {[%clk 0:01:15]}  Ne7 {[%clk 0:01:45]} 22. Be3 {[%clk 0:01:12]}  b6 {[%clk 0:01:45]} 23. axb6 {[%clk 0:01:11]}  axb6 {[%clk 0:01:45]} 24. Ra7 {[%clk 0:01:11]}  Ng6 {[%clk 0:01:46]} 25. Qe2 {[%clk 0:01:08]}  Qd8 {[%clk 0:01:43]} 26. Rfa1 {[%clk 0:01:07]}  Qe8 {[%clk 0:01:43]} 27. Rb7 {[%clk 0:01:06]}  Qc6 {[%clk 0:01:19]} 28. Raa7 {[%clk 0:01:06]}  Nf4 {[%clk 0:00:35]} 29. Bxf4 {[%clk 0:01:05]}  exf4 {[%clk 0:00:36]} 30. Kh2 {[%clk 0:00:52]}  Qc5 {[%clk 0:00:33]} 31. Qd3 {[%clk 0:00:52]}  Kh8 {[%clk 0:00:30]} 32. c3 {[%clk 0:00:52]}  h5 {[%clk 0:00:26]} 33. Qd4 {[%clk 0:00:51]}  Qg5 {[%clk 0:00:20]} 34. Qf2 {[%clk 0:00:51]}  Qd8 {[%clk 0:00:19]} 35. e5 {[%clk 0:00:41]}  dxe5 {[%clk 0:00:18]} 36. Qe2 {[%clk 0:00:42]}  Qg5 {[%clk 0:00:19]} 37. Kg1 {[%clk 0:00:29]}  Rd8 {[%clk 0:00:13]} 38. Ra1 {[%clk 0:00:23]}  Rfd7 {[%clk 0:00:12]} 39. Re1 {[%clk 0:00:11]}  Rd2 {[%clk 0:00:08]} 40. Qf1 {[%clk 0:00:11]}  e4 {[%clk 0:00:08]} 41. Rxe4 {[%clk 0:00:07]}  Qg3 {[%clk 0:00:06]} 42. Re1 {[%clk 0:00:02]}  Rxg2+ {[%clk 0:00:06]} 43. Qxg2 {[%clk 0:00:01]}  Qxe1+ {[%clk 0:00:06]} 44. Qf1 {[%clk 0:00:00]}  Qg3+ {[%clk 0:00:06]} 0-1


[Site "https://www.chess.com"]

[Event "Titled Tuesday Blitz May 16 Early 2023"]
[White "Dubov, Daniil"]
[Black "Kovalenko, Igor"]
[WhiteFideId "24126055"]
[BlackFideId "14117908"]
[WhiteElo "2793"]
[BlackElo "2574"]
[Result "1/2-1/2"]
[Round "09"]
[TimeControl "180+2"]
[Date "2023.05.16"]
[WhiteClock "0:00:02"]
[BlackClock "0:00:07"]

1. d4 {[%clk 0:03:00]}  Nf6 {[%clk 0:02:59]} 2. c4 {[%clk 0:03:00]}  e6 {[%clk 0:02:59]} 3. Nc3 {[%clk 0:03:00]}  Bb4 {[%clk 0:02:58]} 4. e3 {[%clk 0:03:01]}  b6 {[%clk 0:02:55]} 5. Bd3 {[%clk 0:03:01]}  Bb7 {[%clk 0:02:51]} 6. Ne2 {[%clk 0:03:00]}  O-O {[%clk 0:02:40]} 7. O-O {[%clk 0:03:00]}  d5 {[%clk 0:02:39]} 8. cxd5 {[%clk 0:03:00]}  exd5 {[%clk 0:02:27]} 9. Bd2 {[%clk 0:02:57]}  Re8 {[%clk 0:02:25]} 10. Rc1 {[%clk 0:02:55]}  Bf8 {[%clk 0:02:25]} 11. Ng3 {[%clk 0:02:50]}  Nbd7 {[%clk 0:02:19]} 12. Qf3 {[%clk 0:02:26]}  g6 {[%clk 0:02:15]} 13. Rfe1 {[%clk 0:02:15]}  c5 {[%clk 0:01:42]} 14. Bb5 {[%clk 0:01:46]}  Re6 {[%clk 0:01:42]} 15. Nge2 {[%clk 0:01:38]}  a6 {[%clk 0:01:42]} 16. Bd3 {[%clk 0:01:05]}  c4 {[%clk 0:01:31]} 17. Bxc4 {[%clk 0:01:02]}  Ne4 {[%clk 0:01:18]} 18. Nxe4 {[%clk 0:00:59]}  dxc4 {[%clk 0:01:18]} 19. Nf6+ {[%clk 0:00:48]}  Nxf6 {[%clk 0:01:18]} 20. Qxb7 {[%clk 0:00:48]}  Ne4 {[%clk 0:00:52]} 21. Nf4 {[%clk 0:00:48]}  Re7 {[%clk 0:00:48]} 22. Qc6 {[%clk 0:00:42]}  Nxd2 {[%clk 0:00:48]} 23. Re2 {[%clk 0:00:35]}  Rc7 {[%clk 0:00:29]} 24. Qd5 {[%clk 0:00:34]}  Rd7 {[%clk 0:00:29]} 25. Qc6 {[%clk 0:00:35]}  Rc8 {[%clk 0:00:28]} 26. Qa4 {[%clk 0:00:35]}  Ne4 {[%clk 0:00:28]} 27. Qxa6 {[%clk 0:00:34]}  Nd6 {[%clk 0:00:26]} 28. Qa4 {[%clk 0:00:29]}  b5 {[%clk 0:00:26]} 29. Qd1 {[%clk 0:00:30]}  Nf5 {[%clk 0:00:19]} 30. Rec2 {[%clk 0:00:28]}  Bd6 {[%clk 0:00:18]} 31. Ne2 {[%clk 0:00:26]}  Ra8 {[%clk 0:00:18]} 32. a3 {[%clk 0:00:25]}  Qh4 {[%clk 0:00:17]} 33. g3 {[%clk 0:00:25]}  Qe4 {[%clk 0:00:16]} 34. Nc3 {[%clk 0:00:25]}  Qb7 {[%clk 0:00:17]} 35. Qf1 {[%clk 0:00:24]}  Bf8 {[%clk 0:00:15]} 36. Rb1 {[%clk 0:00:23]}  Nd6 {[%clk 0:00:15]} 37. b3 {[%clk 0:00:22]}  cxb3 {[%clk 0:00:15]} 38. Rxb3 {[%clk 0:00:23]}  Qa6 {[%clk 0:00:14]} 39. Nd5 {[%clk 0:00:19]}  Nc4 {[%clk 0:00:14]} 40. Qg2 {[%clk 0:00:16]}  Rad8 {[%clk 0:00:14]} 41. Nc3 {[%clk 0:00:16]}  Nxa3 {[%clk 0:00:14]} 42. Ra2 {[%clk 0:00:15]}  b4 {[%clk 0:00:14]} 43. Ne4 {[%clk 0:00:16]}  f5 {[%clk 0:00:13]} 44. Nd2 {[%clk 0:00:14]}  Qe6 {[%clk 0:00:13]} 45. h4 {[%clk 0:00:12]}  Rc7 {[%clk 0:00:13]} 46. Rab2 {[%clk 0:00:12]}  Rdc8 {[%clk 0:00:13]} 47. Kh2 {[%clk 0:00:12]}  Qc6 {[%clk 0:00:13]} 48. d5 {[%clk 0:00:11]}  Qd6 {[%clk 0:00:13]} 49. Rd3 {[%clk 0:00:11]}  Rc3 {[%clk 0:00:13]} 50. Rd4 {[%clk 0:00:11]}  Nb5 {[%clk 0:00:12]} 51. Rdxb4 {[%clk 0:00:11]}  Qxb4 {[%clk 0:00:12]} 52. Rxb4 {[%clk 0:00:11]}  Bxb4 {[%clk 0:00:13]} 53. d6 {[%clk 0:00:11]}  Nxd6 {[%clk 0:00:12]} 54. Qd5+ {[%clk 0:00:11]}  Nf7 {[%clk 0:00:12]} 55. Nf3 {[%clk 0:00:12]}  R3c7 {[%clk 0:00:12]} 56. Ng5 {[%clk 0:00:11]}  Bf8 {[%clk 0:00:12]} 57. Ne6 {[%clk 0:00:12]}  Re7 {[%clk 0:00:12]} 58. h5 {[%clk 0:00:12]}  Rce8 {[%clk 0:00:12]} 59. Nf4 {[%clk 0:00:11]}  Kg7 {[%clk 0:00:12]} 60. Qd4+ {[%clk 0:00:11]}  Ne5 {[%clk 0:00:12]} 61. Kg2 {[%clk 0:00:11]}  Rd7 {[%clk 0:00:12]} 62. Qc3 {[%clk 0:00:11]}  Kf7 {[%clk 0:00:10]} 63. Qb3+ {[%clk 0:00:10]}  Kf6 {[%clk 0:00:10]} 64. Nd5+ {[%clk 0:00:10]}  Kg7 {[%clk 0:00:10]} 65. Qb5 {[%clk 0:00:10]}  Rxd5 {[%clk 0:00:08]} 66. Qxd5 {[%clk 0:00:09]}  gxh5 {[%clk 0:00:07]} 67. Kh3 {[%clk 0:00:08]}  Kg6 {[%clk 0:00:06]} 68. Qb5 {[%clk 0:00:07]}  Re7 {[%clk 0:00:06]} 69. Qb6+ {[%clk 0:00:06]}  Kg7 {[%clk 0:00:06]} 70. Qd6 {[%clk 0:00:06]}  Ng4 {[%clk 0:00:06]} 71. Qd4+ {[%clk 0:00:04]}  Nf6 {[%clk 0:00:06]} 72. Qd3 {[%clk 0:00:02]}  Kg6 {[%clk 0:00:06]} 73. Kg2 {[%clk 0:00:03]}  Bh6 {[%clk 0:00:06]} 74. Qc4 {[%clk 0:00:03]}  Bg7 {[%clk 0:00:07]} 75. Qc6 {[%clk 0:00:04]}  Re4 {[%clk 0:00:07]} 76. Qc2 {[%clk 0:00:03]}  h4 {[%clk 0:00:07]} 77. f3 {[%clk 0:00:03]}  Rxe3 {[%clk 0:00:07]} 78. g4 {[%clk 0:00:04]}  Re5 {[%clk 0:00:07]} 79. Kh3 {[%clk 0:00:04]}  h5 {[%clk 0:00:07]} 80. gxh5+ {[%clk 0:00:03]}  Kxh5 {[%clk 0:00:07]} 81. Qc7 {[%clk 0:00:04]}  Ne8 {[%clk 0:00:06]} 82. Qf7+ {[%clk 0:00:04]}  Kg5 {[%clk 0:00:06]} 83. Qc4 {[%clk 0:00:04]}  f4 {[%clk 0:00:06]} 84. Qc8 {[%clk 0:00:03]}  Bf6 {[%clk 0:00:06]} 85. Qg4+ {[%clk 0:00:03]}  Kh6 {[%clk 0:00:07]} 86. Qg8 {[%clk 0:00:04]}  Ng7 {[%clk 0:00:06]} 87. Qf7 {[%clk 0:00:04]}  Rf5 {[%clk 0:00:06]} 88. Qd7 {[%clk 0:00:03]}  Bg5 {[%clk 0:00:06]} 89. Kg4 {[%clk 0:00:03]}  Bf6 {[%clk 0:00:07]} 90. Qd3 {[%clk 0:00:02]}  Kg6 {[%clk 0:00:07]} 91. Qe4 {[%clk 0:00:02]}  Bg5 {[%clk 0:00:06]} 92. Qc6+ {[%clk 0:00:02]}  Bf6 {[%clk 0:00:07]} 93. Qe4 {[%clk 0:00:03]}  Kh6 {[%clk 0:00:08]} 94. Qc6 {[%clk 0:00:03]}  Rg5+ {[%clk 0:00:07]} 95. Kh3 {[%clk 0:00:03]}  Rg3+ {[%clk 0:00:07]} 96. Kh2 {[%clk 0:00:03]}  Nh5 {[%clk 0:00:08]} 97. Qe6 {[%clk 0:00:03]}  h3 {[%clk 0:00:07]} 98. Qe4 {[%clk 0:00:03]}  Kg5 {[%clk 0:00:07]} 99. Qd5+ {[%clk 0:00:03]}  Kh4 {[%clk 0:00:08]} 100. Kh1 {[%clk 0:00:02]}  Rg2 {[%clk 0:00:07]} 101. Qxh5+ {[%clk 0:00:02]}  Kxh5 {[%clk 0:00:07]} 1/2-1/2


[Site "https://www.chess.com"]

[Event "Titled Tuesday Blitz May 16 Early 2023"]
[White "Mamedyarov, Shakhriyar"]
[Black "Swiercz, Dariusz"]
[WhiteFideId "13401319"]
[BlackFideId "1126881"]
[WhiteElo "2704"]
[BlackElo "2620"]
[Result "1-0"]
[Round "09"]
[TimeControl "180+2"]
[Date "2023.05.16"]
[WhiteClock "0:01:05"]
[BlackClock "0:00:00"]

1. d4 {[%clk 0:02:56]}  Nf6 {[%clk 0:02:59]} 2. c4 {[%clk 0:02:57]}  e6 {[%clk 0:03:00]} 3. Nc3 {[%clk 0:02:57]}  d5 {[%clk 0:02:58]} 4. cxd5 {[%clk 0:02:57]}  Nxd5 {[%clk 0:02:59]} 5. e4 {[%clk 0:02:54]}  Nxc3 {[%clk 0:02:59]} 6. bxc3 {[%clk 0:02:55]}  c5 {[%clk 0:03:00]} 7. Rb1 {[%clk 0:02:48]}  Be7 {[%clk 0:02:59]} 8. Bb5+ {[%clk 0:02:44]}  Bd7 {[%clk 0:02:55]} 9. Bd3 {[%clk 0:02:39]}  Bc6 {[%clk 0:02:49]} 10. Nf3 {[%clk 0:02:39]}  Nd7 {[%clk 0:02:40]} 11. O-O {[%clk 0:02:38]}  O-O {[%clk 0:02:38]} 12. d5 {[%clk 0:02:35]}  exd5 {[%clk 0:02:37]} 13. exd5 {[%clk 0:02:36]}  Bxd5 {[%clk 0:02:37]} 14. Bxh7+ {[%clk 0:02:36]}  Kxh7 {[%clk 0:02:38]} 15. Qxd5 {[%clk 0:02:36]}  Nb6 {[%clk 0:01:56]} 16. Qxb7 {[%clk 0:02:28]}  Bf6 {[%clk 0:01:56]} 17. Be3 {[%clk 0:02:12]}  Kg8 {[%clk 0:01:37]} 18. Bxc5 {[%clk 0:02:08]}  Qc8 {[%clk 0:01:37]} 19. Qxc8 {[%clk 0:02:03]}  Rfxc8 {[%clk 0:01:38]} 20. Bd4 {[%clk 0:01:58]}  Bxd4 {[%clk 0:01:27]} 21. cxd4 {[%clk 0:01:57]}  Rc2 {[%clk 0:01:28]} 22. a3 {[%clk 0:01:44]}  Rac8 {[%clk 0:01:28]} 23. h4 {[%clk 0:01:43]}  f6 {[%clk 0:01:21]} 24. Rb3 {[%clk 0:01:38]}  Nd5 {[%clk 0:01:16]} 25. g3 {[%clk 0:01:34]}  Ra2 {[%clk 0:01:10]} 26. h5 {[%clk 0:01:26]}  Rc3 {[%clk 0:01:02]} 27. Rb8+ {[%clk 0:01:25]}  Kf7 {[%clk 0:00:51]} 28. Nh4 {[%clk 0:01:24]}  Rcc2 {[%clk 0:00:13]} 29. Rb7+ {[%clk 0:01:22]}  Rc7 {[%clk 0:00:12]} 30. Rfb1 {[%clk 0:01:21]}  Ke6 {[%clk 0:00:02]} 31. Re1+ {[%clk 0:01:18]}  Kd7 {[%clk 0:00:02]} 32. Rb8 {[%clk 0:01:12]}  Nc3 {[%clk 0:00:01]} 33. Nf5 {[%clk 0:01:06]}  Rxa3 {[%clk 0:00:01]} 34. Rg8 {[%clk 0:01:05]}  Kc6 {[%clk 0:00:01]} 35. Rxg7 {[%clk 0:01:04]}  Rxg7 {[%clk 0:00:00]} 36. Nxg7 {[%clk 0:01:05]} 1-0


[Site "https://www.chess.com"]

[Event "Titled Tuesday Blitz May 16 Early 2023"]
[White "Andreikin, Dmitry"]
[Black "Ivic, Velimir"]
[WhiteFideId "4158814"]
[BlackFideId "950122"]
[WhiteElo "2736"]
[BlackElo "2563"]
[Result "1-0"]
[Round "09"]
[TimeControl "180+2"]
[Date "2023.05.16"]
[WhiteClock "0:00:57"]
[BlackClock "0:00:00"]

1. Nf3 {[%clk 0:03:00]}  Nf6 {[%clk 0:03:00]} 2. c4 {[%clk 0:02:56]}  g6 {[%clk 0:03:00]} 3. b4 {[%clk 0:02:50]}  Bg7 {[%clk 0:02:59]} 4. Bb2 {[%clk 0:02:51]}  O-O {[%clk 0:02:52]} 5. g3 {[%clk 0:02:51]}  Nc6 {[%clk 0:02:52]} 6. a3 {[%clk 0:02:49]}  d6 {[%clk 0:02:34]} 7. Bg2 {[%clk 0:02:49]}  e5 {[%clk 0:02:34]} 8. d3 {[%clk 0:02:48]}  h6 {[%clk 0:02:23]} 9. O-O {[%clk 0:02:48]}  Be6 {[%clk 0:02:22]} 10. Nc3 {[%clk 0:02:45]}  Qd7 {[%clk 0:02:19]} 11. Re1 {[%clk 0:02:40]}  Bh3 {[%clk 0:02:18]} 12. Bh1 {[%clk 0:02:40]}  Ng4 {[%clk 0:02:08]} 13. b5 {[%clk 0:02:28]}  Ne7 {[%clk 0:02:06]} 14. Nd2 {[%clk 0:02:27]}  c6 {[%clk 0:02:04]} 15. a4 {[%clk 0:02:26]}  f5 {[%clk 0:01:56]} 16. bxc6 {[%clk 0:02:24]}  bxc6 {[%clk 0:01:55]} 17. Rb1 {[%clk 0:02:20]}  f4 {[%clk 0:01:36]} 18. Nf3 {[%clk 0:02:16]}  Nf5 {[%clk 0:01:14]} 19. Ba3 {[%clk 0:02:05]}  g5 {[%clk 0:01:06]} 20. Ne4 {[%clk 0:02:00]}  d5 {[%clk 0:00:49]} 21. cxd5 {[%clk 0:01:46]}  cxd5 {[%clk 0:00:49]} 22. Qb3 {[%clk 0:01:28]}  Rfd8 {[%clk 0:00:21]} 23. Nexg5 {[%clk 0:01:12]}  hxg5 {[%clk 0:00:21]} 24. Nxg5 {[%clk 0:01:13]}  Nd4 {[%clk 0:00:20]} 25. Qb7 {[%clk 0:01:09]}  Nf6 {[%clk 0:00:19]} 26. Be7 {[%clk 0:01:05]}  Qxb7 {[%clk 0:00:04]} 27. Rxb7 {[%clk 0:01:06]}  Re8 {[%clk 0:00:00]} 28. Nxh3 {[%clk 0:00:57]} 1-0


[Site "https://www.chess.com"]

[Event "Titled Tuesday Blitz May 16 Early 2023"]
[White "Martinez Alcantara, Jose Eduardo"]
[Black "JeRoma71"]
[WhiteFideId "3805662"]
[WhiteElo "2711"]
[BlackElo "2859"]
[Result "1/2-1/2"]
[Round "09"]
[TimeControl "180+2"]
[Date "2023.05.16"]
[WhiteClock "0:00:30"]
[BlackClock "0:00:28"]

1. e4 {[%clk 0:03:00]}  e6 {[%clk 0:02:59]} 2. d4 {[%clk 0:03:00]}  d5 {[%clk 0:03:00]} 3. Nd2 {[%clk 0:03:01]}  c5 {[%clk 0:03:00]} 4. Ngf3 {[%clk 0:03:02]}  Nc6 {[%clk 0:03:00]} 5. c3 {[%clk 0:03:02]}  cxd4 {[%clk 0:03:00]} 6. cxd4 {[%clk 0:03:03]}  dxe4 {[%clk 0:03:00]} 7. Nxe4 {[%clk 0:03:04]}  Bb4+ {[%clk 0:03:01]} 8. Nc3 {[%clk 0:03:02]}  Nf6 {[%clk 0:03:00]} 9. Bd3 {[%clk 0:03:03]}  O-O {[%clk 0:03:00]} 10. O-O {[%clk 0:03:03]}  b6 {[%clk 0:03:00]} 11. Bg5 {[%clk 0:03:03]}  Be7 {[%clk 0:02:57]} 12. a3 {[%clk 0:03:00]}  Bb7 {[%clk 0:02:57]} 13. Re1 {[%clk 0:03:00]}  Rc8 {[%clk 0:02:57]} 14. Rc1 {[%clk 0:02:58]}  h6 {[%clk 0:02:40]} 15. Be3 {[%clk 0:02:46]}  Nd5 {[%clk 0:02:34]} 16. Bb1 {[%clk 0:02:40]}  Nxe3 {[%clk 0:02:32]} 17. fxe3 {[%clk 0:02:34]}  g6 {[%clk 0:02:24]} 18. Qe2 {[%clk 0:02:23]}  Bf6 {[%clk 0:02:22]} 19. Rcd1 {[%clk 0:02:21]}  Bg7 {[%clk 0:02:17]} 20. Qf2 {[%clk 0:02:21]}  Na5 {[%clk 0:02:07]} 21. h4 {[%clk 0:02:12]}  Bxf3 {[%clk 0:02:03]} 22. gxf3 {[%clk 0:02:11]}  h5 {[%clk 0:02:03]} 23. Kh1 {[%clk 0:02:05]}  Nc4 {[%clk 0:01:51]} 24. Ne4 {[%clk 0:02:05]}  Nd6 {[%clk 0:01:48]} 25. Ng5 {[%clk 0:01:56]}  Qe7 {[%clk 0:01:42]} 26. e4 {[%clk 0:01:40]}  e5 {[%clk 0:01:33]} 27. dxe5 {[%clk 0:01:36]}  Qxe5 {[%clk 0:01:27]} 28. f4 {[%clk 0:01:36]}  Qe7 {[%clk 0:01:23]} 29. e5 {[%clk 0:01:36]}  Nc4 {[%clk 0:01:20]} 30. Be4 {[%clk 0:01:13]}  Qc5 {[%clk 0:01:15]} 31. Qxc5 {[%clk 0:01:03]}  Rxc5 {[%clk 0:01:16]} 32. Rd7 {[%clk 0:01:02]}  Bh6 {[%clk 0:01:00]} 33. b4 {[%clk 0:00:51]}  Rcc8 {[%clk 0:00:57]} 34. Bd5 {[%clk 0:00:40]}  Bxg5 {[%clk 0:00:50]} 35. fxg5 {[%clk 0:00:41]}  b5 {[%clk 0:00:42]} 36. e6 {[%clk 0:00:40]}  Nb6 {[%clk 0:00:31]} 37. Rd6 {[%clk 0:00:27]}  Nxd5 {[%clk 0:00:31]} 38. Rxd5 {[%clk 0:00:28]}  fxe6 {[%clk 0:00:26]} 39. Rxe6 {[%clk 0:00:28]}  Rc1+ {[%clk 0:00:26]} 40. Kg2 {[%clk 0:00:27]}  Rc2+ {[%clk 0:00:26]} 41. Kg3 {[%clk 0:00:28]}  Rc3+ {[%clk 0:00:27]} 42. Kg2 {[%clk 0:00:29]}  Rc2+ {[%clk 0:00:27]} 43. Kg3 {[%clk 0:00:29]}  Rc3+ {[%clk 0:00:27]} 44. Kg2 {[%clk 0:00:30]}  Rc2+ {[%clk 0:00:28]} 1/2-1/2


[Site "https://www.chess.com"]

[Event "Titled Tuesday Blitz May 16 Early 2023"]
[White "Wagner, Dennis"]
[Black "Tabatabaei, M. Amin"]
[WhiteFideId "24650684"]
[BlackFideId "12521213"]
[WhiteElo "2478"]
[BlackElo "2575"]
[Result "0-1"]
[Round "09"]
[TimeControl "180+2"]
[Date "2023.05.16"]
[WhiteClock "0:00:00"]
[BlackClock "0:00:14"]

1. e4 {[%clk 0:03:00]}  c5 {[%clk 0:02:55]} 2. Nf3 {[%clk 0:03:01]}  e6 {[%clk 0:02:56]} 3. d4 {[%clk 0:03:01]}  cxd4 {[%clk 0:02:56]} 4. Nxd4 {[%clk 0:03:01]}  Nc6 {[%clk 0:02:57]} 5. Nc3 {[%clk 0:03:01]}  a6 {[%clk 0:02:58]} 6. Nxc6 {[%clk 0:02:58]}  bxc6 {[%clk 0:02:59]} 7. Bd3 {[%clk 0:02:59]}  d5 {[%clk 0:03:00]} 8. O-O {[%clk 0:02:59]}  Nf6 {[%clk 0:03:00]} 9. Qf3 {[%clk 0:02:58]}  Be7 {[%clk 0:02:59]} 10. Qg3 {[%clk 0:02:55]}  O-O {[%clk 0:02:56]} 11. Bh6 {[%clk 0:02:54]}  Ne8 {[%clk 0:02:54]} 12. Rad1 {[%clk 0:02:54]}  Kh8 {[%clk 0:02:51]} 13. Bf4 {[%clk 0:02:55]}  a5 {[%clk 0:02:41]} 14. Na4 {[%clk 0:02:54]}  Ba6 {[%clk 0:02:27]} 15. Bxa6 {[%clk 0:02:48]}  Rxa6 {[%clk 0:02:28]} 16. c4 {[%clk 0:02:48]}  Nf6 {[%clk 0:02:28]} 17. Nc3 {[%clk 0:01:36]}  Nh5 {[%clk 0:01:57]} 18. Qf3 {[%clk 0:01:36]}  Nxf4 {[%clk 0:01:57]} 19. Qxf4 {[%clk 0:01:37]}  Qb8 {[%clk 0:01:46]} 20. Qxb8 {[%clk 0:00:48]}  Rxb8 {[%clk 0:01:47]} 21. cxd5 {[%clk 0:00:42]}  cxd5 {[%clk 0:01:48]} 22. exd5 {[%clk 0:00:40]}  Rxb2 {[%clk 0:01:48]} 23. Rb1 {[%clk 0:00:20]}  Rxb1 {[%clk 0:01:40]} 24. Rxb1 {[%clk 0:00:21]}  g6 {[%clk 0:01:33]} 25. g3 {[%clk 0:00:17]}  Kg7 {[%clk 0:01:18]} 26. dxe6 {[%clk 0:00:14]}  Rxe6 {[%clk 0:01:19]} 27. Rb5 {[%clk 0:00:14]}  Bb4 {[%clk 0:01:15]} 28. Nd5 {[%clk 0:00:14]}  Bd2 {[%clk 0:00:37]} 29. Kg2 {[%clk 0:00:15]}  h5 {[%clk 0:00:35]} 30. h4 {[%clk 0:00:14]}  Re5 {[%clk 0:00:33]} 31. Kf3 {[%clk 0:00:13]}  Be1 {[%clk 0:00:29]} 32. Nc7 {[%clk 0:00:07]}  Re7 {[%clk 0:00:27]} 33. Nd5 {[%clk 0:00:07]}  Re6 {[%clk 0:00:26]} 34. a4 {[%clk 0:00:07]}  Rc6 {[%clk 0:00:20]} 35. Ne3 {[%clk 0:00:06]}  Rf6+ {[%clk 0:00:19]} 36. Ke2 {[%clk 0:00:07]}  Bxf2 {[%clk 0:00:17]} 37. Nd5 {[%clk 0:00:05]}  Rf5 {[%clk 0:00:17]} 38. Ne7 {[%clk 0:00:02]}  Rxb5 {[%clk 0:00:16]} 39. axb5 {[%clk 0:00:03]}  Bxg3 {[%clk 0:00:17]} 40. b6 {[%clk 0:00:02]}  a4 {[%clk 0:00:15]} 41. b7 {[%clk 0:00:00]}  a3 {[%clk 0:00:14]} 0-1


[Site "https://www.chess.com"]